bitfinex/quotes_BTCUSD_20240901
["timestamp","ask_amount","ask_price","bid_price","bid_amount"]
[1725163517545,0.002,58577.0,58576.0,2.24425453]
[1725163517752,0.002,58577.0,58576.0,1.96394553]
[1725163517967,0.002,58577.0,58576.0,1.40389653]
[1725163518799,0.001,58577.0,58576.0,1.40389653]
[1725163519211,0.002,58577.0,58576.0,1.40389653]
[1725163520294,0.002,58577.0,58576.0,1.89935953]
[1725163520730,0.002,58577.0,58576.0,1.83817952]
[1725163520927,0.002,58577.0,58576.0,2.17764753]
[1725163521131,0.50540786,58590.0,58589.0,0.14504353]
[1725163521554,0.170675,58591.0,58589.0,0.14504353]
[1725163522182,0.170675,58591.0,58590.0,0.0827]
[1725163522386,0.293675,58591.0,58590.0,0.0827]
[1725163522699,0.023,58591.0,58590.0,0.14504353]
[1725163522901,0.193672,58592.0,58590.0,0.14504353]
[1725163523115,0.002,58591.0,58590.0,0.14504353]
[1725163523556,0.11783928,58593.0,58591.0,0.0792]
[1725163524003,0.11783928,58593.0,58592.0,0.00074353]
[1725163524216,0.14083928,58593.0,58592.0,0.00074353]
[1725163524895,0.11783928,58593.0,58592.0,0.14594353]
[1725163525387,0.170663,58595.0,58592.0,0.06674353]
[1725163525598,0.023,58594.0,58593.0,0.0792]
[1725163527047,0.023,58594.0,58593.0,0.07994353]
[1725163527262,0.024,58594.0,58593.0,0.07994353]
[1725163527993,0.024,58594.0,58593.0,0.31661153]
[1725163527994,0.001,58594.0,58593.0,0.31661153]
[1725163529237,0.1,58596.0,58593.0,0.31661153]
[1725163529690,0.1,58596.0,58593.0,0.32261153]
[1725163530121,0.1,58596.0,58593.0,0.32061153]
[1725163530569,0.1,58596.0,58593.0,0.31661153]
[1725163530798,0.1,58596.0,58593.0,0.31861153]
[1725163531539,0.853327,58594.0,58593.0,0.002]
[1725163531963,1.3833759,58594.0,58593.0,0.002]
[1725163532172,1.4833759,58594.0,58593.0,0.002]
[1725163533172,1.4883759,58594.0,58593.0,0.001]
[1725163533367,1.1470449,58594.0,58593.0,0.001]
[1725163533696,0.512058,58587.0,58586.0,0.07994353]
[1725163533873,0.69201674,58587.0,58586.0,0.07994353]
[1725163534072,0.69201674,58587.0,58586.0,0.0792]
[1725163534282,0.7007759,58587.0,58586.0,0.0792]
[1725163535053,0.7007759,58587.0,58586.0,0.0822]
[1725163535602,0.7007759,58587.0,58586.0,0.0832]
[1725163536027,1.0421479,58587.0,58586.0,0.0832]
[1725163536231,1.3835199,58587.0,58586.0,0.004]
[1725163537313,1.3835199,58587.0,58563.0,0.008998]
[1725163537314,0.913865,58564.0,58563.0,0.008998]
[1725163537727,1.48974315,58564.0,58563.0,0.008998]
[1725163537989,1.195414,58557.0,58556.0,0.008998]
[1725163538204,1.195414,58557.0,58545.0,0.0792]
[1725163538205,0.85394,58552.0,58545.0,0.0792]
[1725163538417,1.11089874,58552.0,58545.0,0.0792]
[1725163538644,1.11089874,58552.0,58531.0,0.0004]
[1725163538645,1.24799928,58552.0,58531.0,0.0004]
[1725163538883,1.552357,58542.0,58541.0,0.009009]
[1725163539097,1.552357,58542.0,58531.0,0.0004]
[1725163539098,0.512539,58532.0,58531.0,0.0004]
[1725163539340,1.36839871,58532.0,58531.0,0.0004]
[1725163539579,1.34316768,58532.0,58531.0,0.0004]
[1725163539780,1.15843342,58532.0,58531.0,0.0004]
[1725163540626,1.17243342,58532.0,58531.0,0.0004]
[1725163540833,1.18643342,58532.0,58531.0,0.0004]
[1725163541260,0.8485797,58532.0,58531.0,0.0004]
[1725163541469,0.5068867,58532.0,58531.0,0.0004]
[1725163541887,0.4928867,58532.0,58531.0,0.0004]
[1725163542093,0.5068867,58532.0,58531.0,0.0004]
[1725163542763,0.34992796,58532.0,58531.0,0.0004]
[1725163542988,0.17808196,58532.0,58531.0,0.0004]
[1725163543213,0.19008196,58532.0,58531.0,0.0004]
[1725163543438,0.17708196,58532.0,58531.0,0.0004]
[1725163543855,0.20108196,58532.0,58531.0,0.0004]
[1725163544158,0.17808196,58532.0,58531.0,0.0004]
[1725163544456,0.07808196,58532.0,58531.0,0.0004]
[1725163545160,0.04956699,58532.0,58531.0,1.0631935]
[1725163545396,0.04372771,58532.0,58531.0,1.894279]
[1725163545655,0.035,58532.0,58531.0,1.467745]
[1725163545891,0.01783928,58540.0,58536.0,0.170832]
[1725163546135,0.01783928,58540.0,58537.0,0.25153]
[1725163546639,0.01783928,58540.0,58539.0,0.512478]
[1725163546897,0.01783928,58540.0,58539.0,1.510061]
[1725163547125,0.01783928,58540.0,58539.0,1.191607]
[1725163547338,0.170795,58550.0,58541.0,0.0807]
[1725163547555,0.170795,58550.0,58543.0,0.170813]
[1725163547771,0.17947577,58549.0,58544.0,0.00341586]
[1725163547979,0.170791,58551.0,58543.0,0.17422889]
[1725163548407,0.27947377,58550.0,58543.0,0.17422889]
[1725163548632,0.10867877,58550.0,58543.0,0.00341589]
[1725163548856,0.00867877,58550.0,58544.0,0.251509]
[1725163549099,0.10867877,58550.0,58544.0,0.08411582]
[1725163549331,0.10867877,58550.0,58549.0,0.0614]
[1725163550000,0.00867877,58550.0,58549.0,0.0614]
[1725163550219,0.01967877,58550.0,58549.0,0.0614]
[1725163550425,0.011,58550.0,58549.0,0.573791]
[1725163550636,0.02867877,58550.0,58549.0,0.573791]
[1725163550842,0.03467877,58550.0,58549.0,0.654491]
[1725163551048,0.026,58550.0,58549.0,0.312897]
[1725163551698,0.02682,58550.0,58549.0,0.312897]
[1725163551919,0.01782,58550.0,58549.0,0.312897]
[1725163552128,0.03149877,58550.0,58549.0,0.312897]
[1725163553271,0.03149877,58550.0,58549.0,0.1421]
[1725163554620,0.03149877,58550.0,58549.0,0.312897]
[1725163556496,0.03149877,58550.0,58549.0,0.654491]
[1725163556720,0.03149877,58550.0,58549.0,0.312897]
[1725163556962,0.03149877,58550.0,58549.0,0.654491]
[1725163557223,0.02282,58550.0,58549.0,0.81341773]
[1725163557671,0.02282,58550.0,58549.0,0.81144974]
[1725163558350,0.00582,58550.0,58549.0,0.81144974]
[1725163558574,0.00082,58550.0,58549.0,0.81144974]
[1725163558820,0.00282,58550.0,58549.0,0.82444974]
[1725163559059,0.00282,58550.0,58549.0,1.16604374]
[1725163559287,0.00282,58550.0,58549.0,1.74784174]
[1725163559499,0.00282,58550.0,58549.0,1.01065074]
[1725163559687,0.00282,58550.0,58549.0,0.82444974]
[1725163561189,0.00282,58550.0,58549.0,0.667491]
[1725163562070,0.00282,58550.0,58549.0,1.009085]
[1725163562480,0.00282,58550.0,58549.0,0.667491]
[1725163562686,0.00282,58550.0,58549.0,1.009085]
[1725163563956,0.00282,58550.0,58549.0,1.36046274]
[1725163564415,0.00282,58550.0,58549.0,1.70205674]
[1725163566626,0.00282,58550.0,58549.0,1.70705674]
[1725163567490,0.00282,58550.0,58549.0,1.71705674]
[1725163567697,0.00282,58550.0,58549.0,1.88551751]
[1725163569293,0.00282,58550.0,58549.0,4.87144651]
[1725163569830,0.00282,58550.0,58549.0,4.84773251]
[1725163570263,0.00282,58550.0,58549.0,5.18932651]
[1725163570466,0.00282,58550.0,58549.0,5.1912945]
[1725163570624,0.00282,58550.0,58549.0,5.2912945]
[1725163570824,0.170722,58575.0,58571.0,0.0802]
[1725163571254,0.00869666,58572.0,58571.0,0.0802]
[1725163571687,0.170722,58575.0,58571.0,0.0802]
[1725163572063,0.00869666,58574.0,58571.0,0.0802]
[1725163572467,0.01,58572.0,58571.0,0.0802]
[1725163572673,0.02,58572.0,58571.0,0.251932]
[1725163572873,0.02,58572.0,58571.0,0.250932]
[1725163573101,0.01869666,58572.0,58571.0,0.250932]
[1725163573297,0.01869666,58572.0,58571.0,0.0812]
[1725163573719,0.00869666,58572.0,58571.0,0.0802]
[1725163574050,0.00869666,58572.0,58571.0,0.822268]
[1725163574051,0.01,58572.0,58571.0,0.822268]
[1725163574283,0.01869666,58572.0,58571.0,0.741169]
[1725163574516,0.01,58572.0,58571.0,0.741169]
[1725163574966,0.02,58572.0,58571.0,0.741169]
[1725163575391,0.17071,58579.0,58573.0,0.170726]
[1725163575605,0.17940966,58578.0,58574.0,0.00341413]
[1725163575818,0.17940966,58578.0,58573.0,0.17414016]
[1725163576039,0.00341413,58574.0,58573.0,0.17414016]
[1725163576274,0.00423213,58574.0,58573.0,0.29947516]
[1725163576722,0.00423213,58574.0,58573.0,0.30147516]
[1725163577143,0.00423213,58574.0,58573.0,0.17614016]
[1725163577349,0.00423213,58574.0,58573.0,0.63429116]
[1725163577785,0.00423213,58574.0,58573.0,0.63229116]
[1725163578202,0.00423213,58574.0,58573.0,0.63629116]
[1725163578203,0.00523213,58574.0,58573.0,0.63629116]
[1725163578419,0.00623213,58574.0,58573.0,0.64429116]
[1725163578835,0.1631,58587.0,58578.0,0.170711]
[1725163579053,0.170699,58583.0,58578.0,0.1741249]
[1725163579264,0.123,58582.0,58578.0,0.170711]
[1725163579681,0.00869666,58581.0,58578.0,0.170711]
[1725163580124,0.00869666,58581.0,58578.0,0.001]
[1725163580330,0.00869666,58581.0,58577.0,0.17412793]
[1725163581655,0.00869666,58581.0,58578.0,0.170711]
[1725163581864,0.00869666,58581.0,58579.0,0.170708]
[1725163582318,0.270696,58584.0,58579.0,0.170708]
[1725163582678,0.00870871,58583.0,58579.0,0.170708]
[1725163583097,0.00870871,58583.0,58577.0,0.00341393]
[1725163583098,0.17940671,58583.0,58578.0,0.001]
[1725163583442,0.1,58582.0,58578.0,0.17071]
[1725163583652,0.1,58582.0,58579.0,0.003]
[1725163584104,0.00870871,58581.0,58579.0,0.003]
[1725163584849,0.00870871,58581.0,58579.0,0.173708]
[1725163585057,0.00870871,58581.0,58579.0,0.177708]
[1725163585466,0.1,58583.0,58577.0,0.17412693]
[1725163585467,0.270698,58583.0,58577.0,0.17412693]
[1725163585651,0.00870871,58580.0,58579.0,0.01]
[1725163585854,0.002,58581.0,58579.0,0.180707]
[1725163586071,0.00870871,58580.0,58579.0,0.180707]
[1725163586470,0.00870871,58580.0,58579.0,0.174707]
[1725163586912,0.00970871,58580.0,58579.0,0.181707]
[1725163587317,0.00970871,58580.0,58579.0,0.177707]
[1725163587878,0.00970871,58580.0,58579.0,0.519126]
[1725163587990,0.00970871,58580.0,58579.0,1.004345]
[1725163588190,0.001,58580.0,58579.0,1.004345]
[1725163588392,0.001,58580.0,58579.0,1.008345]
[1725163588393,0.002,58580.0,58579.0,1.008345]
[1725163589021,0.002,58580.0,58579.0,1.646904]
[1725163589676,0.002818,58580.0,58579.0,1.80386274]
[1725163590585,0.002818,58580.0,58579.0,1.65928774]
[1725163591958,0.002818,58580.0,58579.0,1.502329]
[1725163592371,0.001818,58580.0,58579.0,1.498329]
[1725163592783,0.000818,58580.0,58579.0,1.491329]
[1725163593017,0.002818,58580.0,58579.0,1.162205]
[1725163594116,0.001818,58580.0,58579.0,1.158205]
[1725163594548,0.002818,58580.0,58579.0,1.168205]
[1725163596798,0.002818,58580.0,58579.0,1.145311]
[1725163600677,0.002818,58580.0,58579.0,1.136926]
[1725163600889,0.002818,58580.0,58579.0,0.679926]
[1725163601108,0.002818,58580.0,58579.0,0.905553]
[1725163601313,0.002818,58580.0,58579.0,1.246972]
[1725163601519,0.002818,58580.0,58579.0,0.905553]
[1725163602878,0.002818,58580.0,58579.0,1.246972]
[1725163603308,0.002818,58580.0,58579.0,1.2478707]
[1725163603760,0.002818,58580.0,58579.0,1.74624844]
[1725163603982,0.002818,58580.0,58579.0,2.26612821]
[1725163604209,0.002818,58580.0,58579.0,2.2730962]
[1725163604450,0.002818,58580.0,58579.0,2.32413509]
[1725163604669,0.002818,58580.0,58579.0,2.32413663]
[1725163605136,0.001818,58580.0,58579.0,2.31413663]
[1725163605359,0.000818,58580.0,58579.0,6.37035563]
[1725163605611,0.002818,58580.0,58579.0,6.39435089]
[1725163605826,0.002818,58580.0,58579.0,6.36117547]
[1725163606045,0.002818,58580.0,58579.0,6.43773381]
[1725163606263,0.002818,58580.0,58579.0,6.36117547]
[1725163606483,0.002818,58580.0,58579.0,6.43770709]
[1725163607364,0.002818,58580.0,58579.0,6.43770721]
[1725163607579,0.002818,58580.0,58579.0,6.43772187]
[1725163609439,0.002818,58580.0,58579.0,6.36117547]
[1725163609654,0.002818,58580.0,58579.0,6.43770989]
[1725163610600,0.002818,58580.0,58579.0,6.43771299]
[1725163611499,0.002818,58580.0,58579.0,6.36117547]
[1725163611979,0.002818,58580.0,58579.0,6.70217547]
[1725163617161,0.002818,58580.0,58579.0,6.77875959]
[1725163617387,0.002818,58580.0,58579.0,6.70217547]
[1725163617609,0.000819,58601.0,58595.0,2.35239373]
[1725163617825,0.000819,58601.0,58600.0,1.01270799]
[1725163618035,0.000819,58601.0,58600.0,3.1117195]
[1725163618291,0.0082,58609.0,58607.0,1.36010799]
[1725163618503,0.005,58644.0,58615.0,0.346209]
[1725163618504,0.0628,58626.0,58615.0,0.346209]
[1725163618713,0.0628,58626.0,58615.0,0.75427174]
[1725163618926,0.0628,58626.0,58615.0,2.53797574]
[1725163619147,0.0628,58626.0,58615.0,2.60834373]
[1725163619369,0.0628,58626.0,58615.0,3.29076173]
[1725163619588,0.0628,58626.0,58615.0,3.28879374]
[1725163620703,0.0628,58626.0,58615.0,3.30279374]
[1725163620986,0.0628,58626.0,58615.0,3.20666574]
[1725163621449,0.100818,58636.0,58615.0,3.8283035]
[1725163621450,0.50540786,58634.0,58615.0,3.8283035]
[1725163621665,0.50540786,58634.0,58633.0,0.66861474]
[1725163622104,0.000818,58636.0,58635.0,0.511639]
[1725163622544,0.000818,58636.0,58635.0,1.057609]
[1725163622747,0.000818,58636.0,58635.0,1.040212]
[1725163623590,0.000818,58636.0,58635.0,1.381305]
[1725163624240,0.000818,58636.0,58635.0,1.394305]
[1725163624668,0.000818,58636.0,58635.0,1.735398]
[1725163624875,0.000818,58636.0,58635.0,1.749398]
[1725163625305,0.000818,58636.0,58635.0,1.829998]
[1725163625727,0.000818,58636.0,58635.0,1.815998]
[1725163625961,0.000818,58636.0,58635.0,1.829998]
[1725163626171,0.000818,58636.0,58635.0,2.331462]
[1725163626377,0.000818,58636.0,58635.0,2.263062]
[1725163626588,0.000818,58636.0,58635.0,2.276062]
[1725163627002,0.000818,58636.0,58635.0,2.263062]
[1725163627923,0.000818,58636.0,58635.0,2.277062]
[1725163630299,0.000818,58636.0,58635.0,2.95052277]
[1725163630541,0.000818,58636.0,58635.0,3.01162277]
[1725163630720,0.000818,58636.0,58635.0,3.01359076]
[1725163631150,0.000818,58636.0,58635.0,2.99959076]
[1725163631365,0.000818,58636.0,58635.0,2.98559076]
[1725163631600,0.000818,58636.0,58635.0,2.99762277]
[1725163631810,0.000818,58636.0,58635.0,2.98559076]
[1725163632022,0.000818,58636.0,58635.0,3.32668376]
[1725163632224,0.000818,58636.0,58635.0,3.34068376]
[1725163632447,0.000818,58636.0,58635.0,3.35468376]
[1725163632869,0.000818,58636.0,58635.0,3.34068376]
[1725163633090,0.000818,58636.0,58635.0,3.35468376]
[1725163634675,0.000818,58636.0,58635.0,2.777062]
[1725163634899,0.000818,58636.0,58635.0,1.65127774]
[1725163635542,0.000818,58636.0,58635.0,1.31018474]
[1725163643107,0.000818,58636.0,58635.0,1.72017774]
[1725163643333,0.000818,58636.0,58635.0,1.96843851]
[1725163645762,0.000818,58636.0,58635.0,1.95443851]
[1725163646398,0.000818,58636.0,58635.0,1.94043851]
[1725163646816,0.000818,58636.0,58635.0,1.95443851]
[1725163647659,0.000818,58636.0,58635.0,4.16673851]
[1725163647871,0.000818,58636.0,58635.0,4.18073851]
[1725163648301,0.000818,58636.0,58635.0,4.52183151]
[1725163648733,0.000818,58636.0,58635.0,4.5237995]
[1725163650018,0.000818,58636.0,58635.0,4.5337995]
[1725163650906,0.000818,58636.0,58635.0,4.9748925]
[1725163651159,0.000818,58636.0,58635.0,4.99280157]
[1725163651387,0.000818,58636.0,58635.0,5.0688367]
[1725163651631,0.000818,58636.0,58635.0,5.06885787]
[1725163651833,0.000818,58636.0,58635.0,4.99280157]
[1725163652054,0.000818,58636.0,58635.0,4.97880157]
[1725163652279,0.000818,58636.0,58635.0,5.05485719]
[1725163652507,0.000818,58636.0,58635.0,4.99280157]
[1725163652755,0.000818,58636.0,58635.0,4.97880157]
[1725163652955,0.000818,58636.0,58635.0,4.96480157]
[1725163653176,0.000818,58636.0,58635.0,4.97880157]
[1725163653396,0.000818,58636.0,58635.0,5.05486916]
[1725163653607,0.000818,58636.0,58635.0,4.97880157]
[1725163653833,0.000818,58636.0,58635.0,4.96480157]
[1725163654061,0.00718139,58639.0,58638.0,1.55180499]
[1725163654268,0.00718139,58639.0,58638.0,2.01468939]
[1725163654479,0.00718139,58639.0,58638.0,5.66448376]
[1725163654695,0.00718139,58639.0,58638.0,5.57504189]
[1725163654920,0.00718139,58639.0,58638.0,5.36637189]
[1725163655134,0.00718139,58639.0,58638.0,4.98951089]
[1725163655354,0.00718139,58639.0,58638.0,4.88206489]
[1725163655568,0.00718139,58639.0,58638.0,4.60254376]
[1725163655779,0.00718139,58639.0,58638.0,4.55383476]
[1725163656430,0.00718139,58639.0,58638.0,4.56783476]
[1725163656868,0.00718139,58639.0,58638.0,3.54103522]
[1725163657078,0.00718139,58639.0,58638.0,3.46475477]
[1725163657289,0.00718139,58639.0,58638.0,3.46672276]
[1725163657493,0.00718139,58639.0,58638.0,3.46475477]
[1725163658112,0.00718139,58639.0,58638.0,3.46672276]
[1725163658522,0.00718139,58639.0,58638.0,3.51752314]
[1725163659415,0.00718139,58639.0,58638.0,3.46672276]
[1725163660472,0.00718139,58639.0,58638.0,3.54292333]
[1725163661437,0.00718139,58639.0,58638.0,3.56832353]
[1725163662005,0.00819,58660.0,58645.0,0.341034]
[1725163662226,0.170518,58645.0,58641.0,0.170527]
[1725163662465,0.170518,58645.0,58639.0,0.39201642]
[1725163662466,0.17051,58648.0,58643.0,0.170522]
[1725163662675,0.17935838,58647.0,58642.0,0.170523]
[1725163662884,0.17935838,58647.0,58643.0,0.170522]
[1725163663127,0.170506,58649.0,58645.0,0.170516]
[1725163663340,0.00884638,58646.0,58645.0,0.170516]
[1725163663549,0.170506,58649.0,58645.0,0.177516]
[1725163663749,0.00884638,58646.0,58645.0,0.177516]
[1725163663956,0.170506,58649.0,58645.0,0.170516]
[1725163664180,0.00884638,58646.0,58645.0,0.008]
[1725163664411,0.170509,58648.0,58645.0,0.008]
[1725163664612,0.341004,58651.0,58644.0,0.170519]
[1725163664613,0.00884638,58646.0,58644.0,0.170519]
[1725163664855,0.170507,58649.0,58644.0,0.170519]
[1725163665066,0.0271,58648.0,58645.0,0.011]
[1725163665203,0.03594638,58648.0,58645.0,0.011]
[1725163665613,0.03594638,58648.0,58645.0,0.170517]
[1725163665823,0.03594638,58648.0,58645.0,0.180517]
[1725163666673,0.03594638,58648.0,58645.0,0.170517]
[1725163666968,0.03594638,58648.0,58645.0,0.181517]
[1725163667215,0.20645538,58648.0,58645.0,0.011]
[1725163667420,0.20645538,58648.0,58645.0,0.02]
[1725163668567,0.511543,58646.0,58645.0,0.02]
[1725163669012,0.52038938,58646.0,58645.0,0.02]
[1725163669456,0.52038938,58646.0,58645.0,0.011]
[1725163669678,0.52138938,58646.0,58645.0,0.021]
[1725163669896,0.18036038,58646.0,58645.0,0.01]
[1725163670107,0.18036038,58646.0,58645.0,0.023]
[1725163673242,0.00984638,58646.0,58645.0,0.023]
[1725163677016,0.00984638,58646.0,58645.0,0.193517]
[1725163678384,0.00984638,58646.0,58645.0,0.534552]
[1725163678616,0.00984638,58646.0,58645.0,1.747233]
[1725163678617,0.001,58646.0,58645.0,1.747233]
[1725163678857,0.001,58646.0,58645.0,1.811133]
[1725163680395,0.001,58646.0,58645.0,1.96772733]
[1725163680665,0.001,58646.0,58645.0,1.789415]
[1725163680872,0.001,58646.0,58645.0,1.640555]
[1725163682009,0.001,58646.0,58645.0,1.122228]
[1725163685911,0.001816,58646.0,58645.0,1.122228]
[1725163687928,0.001816,58646.0,58645.0,1.510348]
[1725163688389,0.001816,58646.0,58645.0,1.56152166]
[1725163689082,0.001816,58646.0,58645.0,1.510348]
[1725163689324,0.001816,58646.0,58645.0,1.56152761]
[1725163689559,0.001816,58646.0,58645.0,1.56153024]
[1725163691242,0.001816,58646.0,58645.0,1.851383]
[1725163691714,0.001816,58646.0,58645.0,2.01034349]
[1725163693025,0.001816,58646.0,58645.0,2.01035539]
[1725163693245,0.001816,58646.0,58645.0,2.01035533]
[1725163693479,0.001816,58646.0,58645.0,1.933583]
[1725163693703,0.001816,58646.0,58645.0,2.01035504]
[1725163696196,0.001816,58646.0,58645.0,1.92931534]
[1725163696426,0.001816,58646.0,58645.0,2.00608738]
[1725163698330,0.001816,58646.0,58645.0,2.4557791]
[1725163698578,0.001816,58646.0,58645.0,2.5557791]
[1725163699273,0.000816,58646.0,58645.0,2.89108176]
[1725163699523,0.000816,58646.0,58645.0,2.88808176]
[1725163699524,0.001816,58646.0,58645.0,2.88808176]
[1725163699733,0.001816,58646.0,58645.0,2.90208176]
[1725163699950,0.000816,58646.0,58645.0,2.89208176]
[1725163700192,0.000816,58648.0,58647.0,1.89259399]
[1725163700412,0.000816,58648.0,58647.0,2.20555476]
[1725163700637,0.000816,58648.0,58647.0,6.49025576]
[1725163700874,0.000816,58648.0,58647.0,6.29762476]
[1725163701104,0.000816,58648.0,58647.0,6.01848376]
[1725163701805,0.00819,58660.0,58659.0,1.49442933]
[1725163702014,0.00819,58660.0,58659.0,4.23191233]
[1725163702242,0.00819,58660.0,58659.0,3.02080733]
[1725163702496,0.00819,58660.0,58659.0,1.63713133]
[1725163702741,0.00819,58660.0,58659.0,0.96798]
[1725163703672,0.00819,58660.0,58659.0,0.98198]
[1725163704581,0.00819,58660.0,58659.0,0.99598]
[1725163705029,0.00819,58660.0,58659.0,1.092141]
[1725163709992,0.00819,58660.0,58659.0,1.38893533]
[1725163710517,0.00819,58660.0,58659.0,1.73488833]
[1725163714844,0.00819,58660.0,58659.0,1.8893491]
[1725163715308,0.00819,58660.0,58659.0,2.2303021]
[1725163715537,0.00819,58660.0,58659.0,1.87731709]
[1725163715807,0.00819,58660.0,58659.0,1.89131709]
[1725163716463,0.00819,58660.0,58659.0,1.90531709]
[1725163716683,0.00819,58660.0,58659.0,1.91531709]
[1725163717427,0.00819,58660.0,58659.0,1.9133491]
[1725163717660,0.00819,58660.0,58659.0,1.88731709]
[1725163718142,0.00819,58660.0,58659.0,1.91531709]
[1725163718627,0.00819,58660.0,58659.0,1.90131709]
[1725163718844,0.00819,58660.0,58659.0,1.9133491]
[1725163719284,0.00819,58660.0,58659.0,1.8993491]
[1725163719744,0.00819,58660.0,58659.0,1.9133491]
[1725163719968,0.00819,58660.0,58659.0,1.93140026]
[1725163722037,0.00819,58660.0,58659.0,1.93336825]
[1725163722236,0.00819,58660.0,58659.0,2.27432125]
[1725163722457,0.00819,58660.0,58659.0,1.93336825]
[1725163723855,0.00819,58660.0,58659.0,2.27432125]
[1725163725181,0.00819,58660.0,58659.0,2.26032125]
[1725163725399,0.00819,58660.0,58659.0,1.8993491]
[1725163725638,0.00819,58660.0,58659.0,1.72088833]
[1725163726155,0.00819,58660.0,58659.0,1.70688833]
[1725163726385,0.00819,58660.0,58659.0,1.72088833]
[1725163726591,0.00819,58660.0,58659.0,1.73488833]
[1725163727022,0.00819,58660.0,58659.0,1.72088833]
[1725163727264,0.00819,58660.0,58659.0,3.12230133]
[1725163727500,0.00819,58660.0,58659.0,3.13630133]
[1725163727739,0.00819,58660.0,58659.0,1.641172]
[1725163727977,0.00819,58660.0,58659.0,0.028]
[1725163727978,0.54671,58660.0,58659.0,0.028]
[1725163728485,0.89652315,58660.0,58659.0,0.028]
[1725163728920,0.55557615,58660.0,58659.0,0.028]
[1725163729135,0.55557615,58660.0,58659.0,0.014]
[1725163729352,0.55557615,58660.0,58649.0,0.170503]
[1725163729353,0.170491,58654.0,58649.0,0.170503]
[1725163729561,0.0271,58653.0,58649.0,0.170503]
[1725163730618,0.0271,58653.0,58649.0,0.182503]
[1725163730835,0.368093,58653.0,58649.0,0.012]
[1725163731064,0.170502,58650.0,58649.0,0.012]
[1725163731275,0.1705,58651.0,58649.0,0.021]
[1725163731694,0.00885613,58650.0,58649.0,0.021]
[1725163732339,0.00885613,58650.0,58649.0,0.034]
[1725163732567,0.00885613,58650.0,58648.0,0.0008998]
[1725163732976,0.00885613,58650.0,58649.0,0.026]
[1725163733625,0.00885613,58650.0,58648.0,0.0008998]
[1725163733835,0.00885613,58650.0,58648.0,0.0088998]
[1725163734046,0.00885613,58650.0,58648.0,0.0208998]
[1725163734503,0.00885613,58650.0,58648.0,0.0128998]
[1725163735988,0.00885613,58650.0,58649.0,0.008]
[1725163736188,0.00885613,58650.0,58649.0,0.02]
[1725163736396,0.00885613,58650.0,58649.0,0.012]
[1725163736616,0.00885613,58650.0,58648.0,0.0088998]
[1725163736831,0.00885613,58650.0,58648.0,0.0208998]
[1725163737051,0.00885613,58650.0,58648.0,0.0008998]
[1725163737496,0.17935813,58650.0,58649.0,0.02]
[1725163737707,0.170502,58650.0,58649.0,0.02]
[1725163737922,0.17935137,58650.0,58649.0,0.008]
[1725163739529,0.17935137,58650.0,58648.0,0.0128998]
[1725163739739,0.17935137,58650.0,58648.0,0.0008998]
[1725163739940,0.17935137,58650.0,58649.0,0.012]
[1725163741009,0.86136137,58650.0,58649.0,0.012]
[1725163741681,0.88846137,58650.0,58649.0,0.02]
[1725163742616,0.54745637,58650.0,58649.0,0.02]
[1725163743078,0.03594937,58650.0,58649.0,0.02]
[1725163743509,0.00884937,58650.0,58649.0,0.02]
[1725163743957,0.170497,58652.0,58649.0,0.02]
[1725163744172,0.00884728,58651.0,58649.0,0.02]
[1725163744826,0.00884728,58651.0,58649.0,0.012]
[1725163745497,0.17934728,58651.0,58649.0,0.012]
[1725163745978,0.17934728,58651.0,58648.0,0.0008998]
[1725163746211,0.17934728,58651.0,58649.0,0.009]
[1725163746721,0.17934728,58651.0,58649.0,0.015]
[1725163746945,0.17934728,58651.0,58649.0,0.025]
[1725163747165,0.17934728,58651.0,58649.0,0.019]
[1725163747419,0.17934728,58651.0,58649.0,0.026]
[1725163748091,0.170502,58650.0,58649.0,0.026]
[1725163748320,0.879612,58650.0,58649.0,0.026]
[1725163748532,0.88845928,58650.0,58649.0,0.026]
[1725163749200,0.88845928,58650.0,58649.0,0.007]
[1725163749639,0.511516,58649.0,58648.0,0.0008998]
[1725163750061,0.52036099,58649.0,58648.0,0.0008998]
[1725163750706,0.52036099,58649.0,58648.0,0.0098998]
[1725163751777,0.52036099,58649.0,58648.0,0.0228998]
[1725163753092,0.86137199,58649.0,58648.0,0.0228998]
[1725163761149,1.76449896,58649.0,58648.0,0.0228998]
[1725163761357,1.78249896,58649.0,58648.0,0.0228998]
[1725163761588,1.8426679,58649.0,58648.0,0.0228998]
[1725163762028,1.8426679,58649.0,58648.0,0.0138998]
[1725163762458,1.86122466,58649.0,58648.0,0.0138998]
[1725163762903,1.86122466,58649.0,58648.0,0.0008998]
[1725163763117,1.86122466,58649.0,58648.0,0.0018998]
[1725163763357,1.86622466,58649.0,58648.0,0.0028998]
[1725163763589,1.86622466,58649.0,58648.0,0.0018998]
[1725163764533,1.76521969,58649.0,58648.0,0.0018998]
[1725163764787,1.9239986,58649.0,58648.0,0.0018998]
[1725163766359,1.76721969,58649.0,58648.0,0.0018998]
[1725163766803,1.9239986,58649.0,58648.0,0.0018998]
[1725163767270,1.61852373,58649.0,58648.0,0.0018998]
[1725163767501,1.78984673,58649.0,58648.0,0.0018998]
[1725163768856,1.78784673,58649.0,58648.0,0.0018998]
[1725163769243,1.78984673,58649.0,58648.0,0.0018998]
[1725163769467,1.63306782,58649.0,58648.0,0.0018998]
[1725163769936,1.78984673,58649.0,58648.0,0.0018998]
[1725163771432,1.86079942,58649.0,58648.0,0.0018998]
[1725163773363,1.86579942,58649.0,58648.0,0.0018998]
[1725163775719,1.85879942,58649.0,58648.0,0.0018998]
[1725163779030,1.51778842,58649.0,58648.0,0.0018998]
[1725163779434,0.97434175,58649.0,58648.0,0.0018998]
[1725163782120,1.31535275,58649.0,58648.0,0.0018998]
[1725163782350,1.34245275,58649.0,58648.0,0.0018998]
[1725163782560,1.40060357,58649.0,58648.0,0.0018998]
[1725163784702,1.40260357,58649.0,58648.0,0.0018998]
[1725163784915,1.40060357,58649.0,58648.0,0.0018998]
[1725163787565,1.41252672,58649.0,58648.0,0.0018998]
[1725163787788,1.3543759,58649.0,58648.0,0.0018998]